bitfinex-derivatives/quotes_ETHF0:USTF0_20240923
["timestamp","ask_amount","ask_price","bid_price","bid_amount"]
[1727108032382,3.2078,2694.3,2693.4,2.82]
[1727108032582,3.57893,2694.3,2693.7,0.37121]
[1727108032790,3.2078,2694.0,2693.3,3.2078]
[1727108033096,3.2078,2693.4,2692.6,2.82]
[1727108033313,3.2078,2693.4,2692.4,3.2078]
[1727108033483,0.37128,2693.2,2692.4,3.2078]
[1727108033683,3.2078,2693.1,2692.4,3.2078]
[1727108033890,0.37132,2693.0,2692.4,3.2078]
[1727108034207,0.37132,2693.0,2692.4,3.57919]
[1727108034493,3.2078,2693.1,2692.4,3.2078]
[1727108034691,3.2078,2693.1,2691.1,0.92891]
[1727108034692,3.57918,2692.5,2691.7,3.2078]
[1727108034880,3.2078,2692.5,2691.7,3.2078]
[1727108035087,3.2078,2692.5,2692.1,0.37143]
[1727108035493,3.2078,2692.5,2692.0,0.37144]
[1727108035682,3.57918,2692.5,2691.9,0.37146]
[1727108035881,3.57918,2692.5,2691.7,3.2078]
[1727108035882,3.2078,2692.5,2691.7,3.2078]
[1727108036088,0.37144,2692.1,2691.4,0.37152]
[1727108036395,0.37144,2692.1,2691.5,0.37151]
[1727108036788,3.2078,2692.2,2691.7,0.37148]
[1727108036992,3.57923,2692.2,2691.6,0.3715]
[1727108037294,3.57923,2692.2,2691.2,3.2078]
[1727108037488,3.2078,2692.2,2691.7,0.37149]
[1727108037691,3.2078,2692.2,2691.5,2.82]
[1727108037893,3.2078,2692.2,2691.8,0.37147]
[1727108038598,3.2078,2692.2,2691.9,0.37146]
[1727108038897,3.2078,2692.2,2691.5,2.82]
[1727108039402,3.2078,2692.2,2690.3,3.3938]
[1727108039403,3.2078,2691.6,2690.3,3.3938]
[1727108039700,3.7152,2692.1,2689.7,6.696]
[1727108039701,3.2078,2690.8,2690.0,2.82]
[1727108039895,3.2078,2690.8,2690.3,0.37168]
[1727108040294,3.2078,2690.8,2690.0,2.82]
[1727108040599,3.2078,2690.8,2690.5,0.37165]
[1727108040798,3.2078,2690.8,2690.6,0.37163]
[1727108041104,3.2078,2690.8,2690.7,0.37163]
[1727108041400,3.2078,2691.3,2691.0,0.37157]
[1727108041603,3.2078,2691.3,2690.5,0.92914]
[1727108041795,3.2078,2691.3,2690.8,2.82]
[1727108042100,3.2078,2691.3,2690.8,3.1916]
[1727108042593,3.2078,2691.3,2690.8,2.82]
[1727108042795,3.2078,2691.3,2690.7,0.37162]
[1727108043002,3.2078,2691.3,2690.4,2.82]
[1727108043003,3.57935,2691.3,2690.6,0.37163]
[1727108043303,0.92866,2692.0,2690.5,0.37165]
[1727108043304,3.2078,2691.0,2690.5,0.37165]
[1727108043495,3.2078,2691.0,2690.6,0.37164]
[1727108043691,3.2078,2691.0,2690.5,0.37165]
[1727108043902,3.57935,2691.3,2690.6,0.37163]
[1727108044102,0.37152,2691.5,2690.8,0.3716]
[1727108044305,3.57931,2691.6,2690.9,0.37159]
[1727108045308,3.57935,2691.3,2690.6,0.37164]
[1727108045503,0.37154,2691.4,2690.4,2.82]
[1727108045802,3.2078,2691.2,2690.8,0.3716]
[1727108046002,0.37156,2691.2,2690.5,0.37165]
[1727108046201,0.37156,2691.2,2690.4,6.0278]
[1727108046202,3.2078,2691.2,2690.4,6.0278]
[1727108046596,0.37158,2691.1,2690.5,0.37165]
[1727108046798,0.37157,2691.1,2690.5,0.37165]
[1727108047303,1.81963,2691.4,2690.0,43.62]
[1727108047304,0.37164,2690.7,2690.0,43.62]
[1727108047519,3.2078,2690.7,2689.9,0.37173]
[1727108047802,3.2078,2690.4,2689.9,0.37173]
[1727108048000,3.2078,2690.4,2689.7,0.9407]
[1727108048206,0.9364,2691.1,2689.2,0.37183]
[1727108048207,0.37177,2689.7,2689.2,0.37183]
[1727108048508,3.2078,2689.8,2689.0,3.2078]
[1727108049000,3.2078,2689.2,2688.6,2.82]
[1727108049211,1.85836,2690.4,2688.6,2.82]
[1727108049212,3.2078,2689.3,2688.6,2.82]
[1727108049498,3.2078,2689.2,2688.8,0.37188]
[1727108049895,3.2078,2689.2,2688.9,0.37187]
[1727108050105,3.2078,2689.2,2688.6,2.82]
[1727108050401,0.9364,2689.6,2688.4,41.7396]
[1727108050402,3.2078,2688.9,2688.4,0.9396]
[1727108050808,0.92951,2689.5,2688.3,40.8]
[1727108050809,3.2078,2688.8,2688.3,40.8]
[1727108051202,3.2078,2688.8,2688.4,0.37194]
[1727108051711,3.5797,2688.8,2688.2,3.19197]
[1727108052003,3.2078,2688.8,2688.6,0.37191]
[1727108052411,3.2078,2688.8,2688.5,0.37192]
[1727108052599,3.2078,2688.8,2688.3,0.37195]
[1727108052801,3.2078,2688.7,2688.3,0.37195]
[1727108053005,0.92956,2689.3,2688.4,0.37194]
[1727108053006,3.2078,2688.8,2688.4,0.37194]
[1727108053207,3.2078,2688.8,2688.3,0.37195]
[1727108053510,3.2078,2688.7,2688.3,0.37195]
[1727108053705,3.2078,2688.7,2688.2,2.82]
[1727108053906,3.57965,2689.1,2688.5,0.37192]
[1727108054099,3.2078,2689.1,2688.5,0.37192]
[1727108054306,3.2078,2688.9,2688.2,2.82]
[1727108054600,3.2078,2688.9,2688.5,0.37192]
[1727108055010,3.2078,2688.9,2688.2,2.82]
[1727108055209,3.57968,2688.9,2688.3,0.37195]
[1727108055609,0.37194,2688.5,2687.8,2.82]
[1727108055812,3.2078,2688.6,2687.8,2.82]
[1727108056014,3.2078,2688.6,2688.1,3.2078]
[1727108056201,0.92958,2689.3,2688.4,0.37194]
[1727108056202,0.37184,2689.2,2688.4,0.37194]
[1727108056402,3.2078,2688.8,2688.4,0.37194]
[1727108056899,3.2078,2688.8,2688.1,3.2078]
[1727108057103,0.37187,2689.0,2688.1,3.2078]
[1727108057302,3.2078,2688.7,2688.2,0.37197]
[1727108057515,3.5797,2688.7,2688.2,0.37197]
[1727108057811,3.2078,2688.7,2688.2,0.37197]
[1727108058013,3.5797,2688.7,2688.2,0.37197]
[1727108058221,3.57972,2688.6,2688.1,41.17197]
[1727108058410,3.2078,2688.6,2688.1,41.17197]
[1727108058619,3.2078,2688.6,2687.8,3.2078]
[1727108058620,0.37194,2688.5,2687.8,3.2078]
[1727108058806,0.37194,2688.4,2687.9,0.37201]
[1727108059005,0.37194,2688.5,2687.8,3.2078]
[1727108059309,3.2078,2688.6,2687.8,3.57982]
[1727108059611,0.37196,2688.3,2687.8,0.37202]
[1727108059820,3.2078,2688.6,2688.0,0.37199]
[1727108060014,3.2078,2688.6,2687.8,0.37202]
[1727108060314,0.37197,2688.3,2687.8,0.37202]
[1727108060512,3.2078,2688.1,2687.4,3.57987]
[1727108060718,3.2078,2687.8,2687.4,3.2078]
[1727108061111,0.37201,2688.0,2687.6,0.37205]
[1727108061306,3.57979,2688.1,2687.7,0.37204]
[1727108061808,3.2078,2687.9,2687.4,3.2078]
[1727108062011,3.2078,2687.9,2687.5,0.37206]
[1727108062717,3.2078,2687.9,2687.6,0.37206]
[1727108063518,3.2078,2687.9,2687.4,3.2078]
[1727108063717,3.57982,2687.9,2687.5,0.37206]
[1727108063917,3.2078,2687.9,2687.7,0.37203]
[1727108064111,3.2078,2688.3,2687.8,3.75008]
[1727108064311,3.2078,2688.3,2688.2,0.37197]
[1727108064509,3.2078,2688.3,2687.8,3.744]
[1727108064811,0.37191,2688.7,2688.2,0.37197]
[1727108065010,0.92972,2688.9,2687.8,4.67406]
[1727108065011,3.57972,2688.6,2688.1,0.37198]
[1727108065315,0.3719,2688.8,2688.3,0.37195]
[1727108065615,3.2078,2688.6,2688.3,0.37196]
[1727108066414,3.2078,2688.9,2688.0,3.2078]
[1727108066607,3.57968,2688.9,2688.1,0.92997]
[1727108066914,0.9244,2689.1,2688.0,3.2078]
[1727108066915,3.2078,2688.6,2688.0,3.2078]
[1727108067109,0.37194,2688.5,2688.1,0.37198]
[1727108067415,3.57977,2688.2,2687.8,0.37202]
[1727108067617,0.37199,2688.1,2687.5,6.272]
[1727108067912,3.2078,2688.1,2687.4,3.2078]
[1727108068419,3.2078,2688.1,2687.8,0.37203]
[1727108068618,3.2078,2688.1,2687.4,3.2078]
[1727108068818,3.2078,2688.1,2687.8,0.37203]
[1727108069228,0.9839,2688.4,2688.1,0.37197]
[1727108069418,3.57971,2688.7,2688.2,0.37196]
[1727108069609,0.37192,2688.6,2688.2,0.37196]
[1727108070009,3.2078,2688.7,2688.6,0.37192]
[1727108070211,4.1674,2689.0,2688.3,3.2078]
[1727108070417,3.2078,2688.7,2688.0,3.2078]
[1727108070619,3.2078,2688.7,2687.8,10.02205]
[1727108070620,3.2078,2688.7,2687.9,0.93004]
[1727108070917,3.57971,2688.7,2688.3,0.37196]
[1727108071107,3.57971,2688.7,2687.8,9.092]
[1727108071108,3.2078,2688.7,2687.8,2.82]
[1727108071307,3.2078,2688.7,2688.2,0.37196]
[1727108071308,0.37192,2688.6,2688.2,0.37196]
[1727108071712,3.72,2688.5,2687.7,3.2078]
[1727108071918,0.37196,2688.3,2687.9,0.372]
[1727108072222,0.37196,2688.3,2688.0,0.372]
[1727108072421,0.37195,2688.4,2688.1,0.37199]
[1727108072609,0.37197,2688.3,2688.0,0.37199]
[1727108072814,0.37195,2688.4,2688.1,0.37198]
[1727108073014,0.37196,2688.3,2688.0,0.37199]
[1727108073214,0.37195,2688.4,2688.1,0.37198]
[1727108073921,0.37196,2688.3,2688.1,0.37198]
[1727108074224,0.9298,2688.6,2688.1,0.37198]
[1727108074522,3.2078,2688.4,2687.5,2.82]
[1727108074819,0.37201,2688.0,2687.4,0.93022]
[1727108075018,0.37201,2688.0,2687.3,3.2078]
[1727108075019,3.2078,2688.1,2687.3,3.2078]
[1727108075219,7.2898,2688.4,2687.7,0.93011]
[1727108075418,0.37197,2688.3,2688.0,0.37199]
[1727108076025,3.2078,2688.4,2688.2,0.37197]
[1727108076220,3.57975,2688.4,2688.2,0.37197]
[1727108076421,3.72,2688.3,2688.1,0.37198]
[1727108076721,3.57975,2688.4,2688.3,0.37196]
[1727108076722,3.2078,2688.4,2688.3,0.37196]
[1727108076920,3.2078,2688.7,2688.5,0.37193]
[1727108077118,3.5797,2688.8,2688.5,0.37193]
[1727108077315,3.5797,2688.8,2688.4,0.37194]
[1727108077519,0.37191,2688.7,2688.4,0.37194]
[1727108077722,3.57973,2688.5,2688.2,0.37197]
[1727108077918,3.57973,2688.5,2687.8,4.13786]
[1727108077919,3.2078,2688.8,2687.9,0.93004]
[1727108078119,3.2078,2688.8,2688.1,3.2078]
[1727108078320,3.2078,2688.8,2688.5,0.37192]
[1727108078814,3.2078,2688.8,2688.4,0.37194]
[1727108079020,3.2078,2688.8,2688.2,40.8]
[1727108079238,3.2078,2688.8,2688.2,0.37197]
[1727108079522,3.2078,2688.8,2688.4,0.37194]
[1727108079722,3.57969,2688.8,2688.4,0.37194]
[1727108079930,3.2078,2688.8,2688.4,0.37194]
[1727108080125,0.37191,2688.7,2688.0,3.2078]
[1727108080321,3.57975,2688.4,2687.7,3.2078]
[1727108080521,0.37195,2688.4,2687.9,0.372]
[1727108080727,0.37194,2688.5,2688.0,0.372]
[1727108080926,0.37192,2688.6,2688.2,0.37197]
[1727108081123,0.37195,2688.4,2688.0,0.372]
[1727108081323,3.2078,2688.4,2688.1,0.37198]
[1727108081529,0.92976,2688.8,2688.4,0.37194]
[1727108081530,3.2078,2688.7,2688.4,0.37194]
[1727108082234,3.57971,2688.7,2688.1,3.2078]
[1727108082427,3.57971,2688.7,2688.3,0.37195]
[1727108082622,3.2078,2688.7,2688.4,0.37194]
[1727108082818,3.2078,2688.7,2688.5,0.37193]
[1727108083128,3.2078,2688.7,2688.3,0.37195]
[1727108083330,3.57971,2688.7,2688.3,0.37195]
[1727108083531,3.57971,2688.7,2688.1,3.2078]
[1727108083532,3.2078,2688.7,2688.5,0.37193]
[1727108083728,3.2078,2688.7,2688.6,0.37192]
[1727108083924,4.1674,2689.0,2688.8,0.37188]
[1727108084123,10.1674,2689.0,2687.8,44.0078]
[1727108084429,10.1674,2689.0,2687.9,0.37201]
[1727108084430,0.37198,2688.2,2687.9,0.37201]
[1727108084729,0.37198,2688.2,2687.4,4.138]
[1727108084933,3.57978,2688.2,2687.8,0.37202]
[1727108085119,3.2078,2688.2,2687.9,0.37201]
[1727108085524,0.37197,2688.3,2688.0,0.37199]
[1727108085732,0.37197,2688.3,2687.9,0.37201]
[1727108085733,3.2078,2688.2,2687.9,0.37201]
[1727108086434,3.57977,2688.2,2687.9,0.37201]
[1727108087136,3.57977,2688.2,2687.5,0.93016]
[1727108087137,3.2078,2688.2,2687.6,0.93015]
[1727108087637,3.57977,2688.2,2687.9,0.37201]
[1727108087827,3.57977,2688.2,2687.8,0.37202]
[1727108088033,3.57977,2688.2,2687.9,0.37201]
[1727108088333,3.2078,2688.2,2687.9,0.372]
[1727108088530,3.2078,2688.2,2687.8,0.37202]
[1727108088740,3.2078,2687.9,2687.5,0.37207]
[1727108089038,0.93001,2688.0,2687.2,0.3721]
[1727108089039,0.37208,2687.5,2687.2,0.3721]
[1727108089225,3.2078,2687.6,2687.1,3.2078]
[1727108089428,3.57987,2687.6,2687.3,0.37209]
[1727108089623,0.978,2687.8,2687.1,3.2078]
[1727108089831,0.978,2687.8,2687.3,0.93025]
[1727108090041,3.2078,2688.0,2687.3,2.5]
[1727108090231,3.2078,2688.0,2687.9,0.37201]
[1727108090728,0.9126,2688.4,2687.9,4.65004]
[1727108090932,4.082,2688.7,2687.4,3.2078]
[1727108090933,3.2078,2688.2,2687.4,3.2078]
[1727108091125,3.2078,2687.9,2687.1,0.93031]
[1727108091326,0.37205,2687.7,2687.4,0.37208]
[1727108091533,3.2078,2687.5,2686.7,40.8]
[1727108091732,0.37212,2687.2,2686.9,0.37215]
[1727108092033,3.2078,2687.2,2686.4,0.9055]
[1727108092232,4.1381,2687.2,2686.4,0.9055]
[1727108092428,0.37216,2686.9,2686.4,0.9055]
[1727108092728,0.37215,2687.0,2686.4,4.1133]
[1727108093031,5.12084642,2687.2,2686.6,0.37219]
[1727108093233,0.93032,2687.1,2686.7,0.37217]
[1727108093436,1.34348642,2687.0,2686.8,0.37217]
[1727108093738,0.97134642,2687.0,2686.8,0.37217]
[1727108093927,1.34348642,2687.0,2686.7,0.37217]
[1727108094133,0.97134642,2687.0,2686.4,4.1133]
[1727108094433,0.97134642,2687.0,2686.9,0.37215]
[1727108095140,0.37214,2687.0,2686.9,0.37215]
[1727108095371,0.97134642,2687.0,2686.9,0.37215]
[1727108095641,1.34348642,2687.0,2686.8,0.37216]
[1727108096037,3.2078,2686.9,2686.8,0.37216]
[1727108096434,6.9294,2686.9,2686.8,0.37216]
[1727108096636,3.7216,2686.9,2686.8,0.37216]
[1727108096844,3.7216,2686.9,2686.4,1.83605]
[1727108096845,3.2078,2687.0,2686.9,0.37215]
[1727108097035,0.97134642,2687.1,2687.0,0.37214]
[1727108097346,2.85530592,2687.4,2687.3,0.3721]
[1727108097347,0.9126,2687.4,2687.3,0.3721]
[1727108097645,0.97134642,2687.6,2687.5,0.37207]
[1727108097945,1.34340642,2687.6,2687.4,0.37207]
[1727108098138,1.34340642,2687.6,2687.0,40.8]
[1727108098139,0.37208,2687.5,2687.3,0.37209]
[1727108098340,1.34340642,2687.6,2687.4,0.37207]
[1727108098545,0.37207,2687.5,2687.3,0.37209]
[1727108098740,3.2078,2687.5,2687.4,0.37208]
[1727108099143,7.89994642,2687.5,2687.4,0.37208]
[1727108099337,3.2078,2687.5,2687.4,0.37208]
[1727108100635,0.37212,2687.2,2686.5,4.13832]
[1727108100947,3.2078,2687.2,2687.1,0.37212]
[1727108101145,3.39972555,2687.5,2687.4,0.37208]
[1727108101146,0.97134642,2687.5,2687.4,0.37208]
[1727108101334,0.97134642,2687.7,2687.4,0.37208]
[1727108101540,7.89994642,2687.6,2686.9,3.2078]
[1727108101754,4.17914642,2687.6,2687.5,0.37207]
[1727108102042,0.37204,2687.8,2687.6,0.37206]
[1727108102043,0.97134642,2687.8,2687.6,0.37206]
[1727108102241,0.97134642,2688.1,2687.6,0.93013]
[1727108102442,5.15050592,2688.3,2688.2,0.37197]
[1727108102443,4.17914642,2688.3,2688.2,0.37197]
[1727108102750,0.97134642,2688.6,2688.2,3.72]
[1727108102935,0.97134642,2688.9,2688.3,3.2078]
[1727108103136,1.34324642,2688.8,2688.4,0.37194]
[1727108103332,1.34324642,2688.8,2688.0,4.13781]
[1727108103333,3.2078,2688.7,2687.6,1.91364]
[1727108103540,0.37195,2688.4,2688.0,0.37199]
[1727108103742,0.37195,2688.4,2687.9,0.37201]
[1727108103743,0.37197,2688.3,2687.9,0.37201]
[1727108103940,0.37197,2688.2,2687.9,0.37201]
[1727108104241,3.2078,2688.2,2687.4,3.2078]
[1727108104450,3.2078,2688.2,2687.3,0.9154]
[1727108104451,0.97134642,2688.1,2687.3,0.9154]
[1727108104749,0.37208,2687.4,2687.2,0.3721]
[1727108104937,0.37208,2687.5,2687.2,0.3721]
[1727108105137,3.2078,2687.6,2687.1,3.2078]
[1727108105338,3.2078,2687.6,2687.5,0.37207]
[1727108105534,0.97134642,2687.7,2687.6,0.37206]
[1727108105737,0.97134642,2687.8,2687.5,0.37207]
[1727108105934,1.34337642,2687.8,2687.5,0.37207]
[1727108106141,1.34338642,2687.8,2687.5,0.37207]
[1727108107049,1.34337642,2687.8,2687.5,0.37207]
[1727108107648,7.89994642,2687.7,2686.8,40.8]
[1727108107842,0.37207,2687.5,2687.2,0.3721]
[1727108108043,0.97134642,2687.6,2686.8,40.8]
[1727108108044,3.2078,2687.4,2686.8,40.8]
[1727108108347,0.37215,2687.0,2686.5,0.9619]
[1727108108548,0.37215,2687.0,2686.7,0.37217]
[1727108108851,0.97134642,2687.1,2686.3,0.93057]
[1727108108852,0.37216,2686.9,2686.6,0.37218]
[1727108109152,0.37215,2686.9,2686.7,0.37217]
[1727108109450,0.97134642,2687.2,2687.0,0.37213]
[1727108109642,0.97134642,2687.2,2687.1,0.37212]
[1727108109837,1.93484642,2687.3,2687.1,0.37212]
[1727108110241,3.7216,2687.2,2686.5,3.2078]
[1727108110451,0.93035,2687.0,2686.5,0.37221]
[1727108110651,3.2078,2686.7,2685.9,4.1342]
[1727108110858,0.37221,2686.5,2686.3,0.37223]
[1727108111154,0.3722,2686.6,2686.4,0.37222]
[1727108111748,3.2078,2686.7,2685.7,40.8]
[1727108112051,4.1479,2686.5,2686.4,0.37222]
[1727108112445,7.8703,2686.5,2686.4,0.37222]
[1727108112646,0.37224,2686.3,2685.9,3.2078]
[1727108112843,5.11924642,2686.5,2685.9,3.2078]
[1727108113153,4.1479,2686.5,2686.4,0.37222]
[1727108113348,4.1479,2686.5,2685.9,4.13851]
[1727108113554,3.2078,2686.5,2686.4,0.37222]
[1727108113947,0.97134642,2687.1,2686.5,0.9305]
[1727108114252,1.34344642,2687.3,2686.5,0.9305]
[1727108114553,0.97134642,2687.3,2686.4,0.9663]
[1727108114856,1.34345642,2687.3,2686.5,0.93053]
[1727108115055,1.34345642,2687.3,2686.4,0.9663]
[1727108115056,3.57993,2687.1,2686.4,0.9663]
[1727108115246,3.57993,2687.1,2686.8,0.37217]
[1727108115444,3.2078,2687.1,2686.6,0.37218]
[1727108115649,3.2078,2687.1,2686.4,0.9663]
[1727108116056,0.37216,2686.9,2686.6,0.37219]
[1727108116257,0.37214,2687.0,2686.7,0.37217]
[1727108116457,3.2078,2687.1,2686.7,0.37217]
[1727108116648,3.2078,2687.1,2686.4,0.9663]
[1727108116649,0.37221,2686.6,2686.4,0.9663]
[1727108116849,3.2078,2686.5,2686.3,0.47903]
[1727108117055,3.2078,2686.5,2686.3,0.1068]
[1727108117364,3.2078,2686.5,2685.8,0.3723]
[1727108117365,6.2224,2686.4,2685.8,0.3723]
[1727108117653,2.38775963,2685.9,2684.5,3.3938]
[1727108117853,3.2078,2685.4,2684.8,0.37244]
[1727108118057,0.37238,2685.3,2684.3,0.93129]
[1727108118252,2.5,2685.5,2684.8,0.37244]
[1727108118253,3.2078,2685.1,2684.8,0.37244]
[1727108118456,5.7078,2685.5,2684.5,4.13902]
[1727108118654,3.2078,2685.6,2684.5,5.7078]
[1727108118854,3.2078,2685.6,2684.8,3.2078]
[1727108119057,3.58014,2685.6,2685.1,0.37239]
[1727108119252,3.2078,2685.6,2685.3,0.37236]
[1727108119654,3.2078,2685.6,2684.8,3.2078]
[1727108120063,3.58014,2685.6,2685.1,0.37239]
[1727108120458,3.58014,2685.6,2684.8,3.2078]
[1727108120459,3.2078,2685.6,2684.8,3.2078]
[1727108120664,3.2078,2685.6,2684.9,0.37242]
[1727108120665,3.2078,2685.2,2684.9,0.37242]
[1727108120959,3.2078,2685.2,2684.5,0.37248]
[1727108121157,3.2078,2684.6,2684.0,0.37255]
[1727108121358,3.2078,2684.6,2683.8,3.2078]
[1727108121359,3.2078,2684.3,2683.9,0.37257]
[1727108121561,3.2078,2684.3,2683.5,44.0078]
[1727108121755,3.2078,2684.6,2683.5,44.0078]
[1727108122061,3.2078,2684.2,2683.8,0.37258]
[1727108122267,3.58033,2684.2,2683.7,0.37259]
[1727108122464,3.2078,2684.2,2683.8,0.37258]
[1727108122668,0.37255,2684.1,2683.6,0.3726]
[1727108123054,0.37255,2684.1,2683.7,0.37259]
[1727108123257,3.2078,2684.2,2683.3,40.8]
[1727108123562,1.8415,2684.8,2682.9,3.2078]
[1727108123563,7.63103,2684.0,2682.9,3.2078]
[1727108123865,0.37264,2683.5,2683.0,0.37269]
[1727108124054,3.2078,2684.0,2683.3,3.2078]
[1727108124268,3.2078,2684.3,2683.3,3.2078]
[1727108124460,3.2078,2684.3,2684.1,0.37253]
[1727108124655,3.2078,2684.3,2683.4,0.9627]
[1727108124656,3.2078,2684.3,2683.7,3.2078]
[1727108124862,3.2078,2684.3,2683.4,5.1237]
[1727108125161,3.58032,2684.3,2683.8,0.37258]
[1727108125366,3.2078,2684.3,2683.5,0.93157]
[1727108125561,3.2078,2684.3,2684.0,0.37255]
[1727108125766,3.2078,2684.3,2683.7,3.2078]
[1727108125969,3.2078,2684.3,2683.4,0.9627]
[1727108125970,3.2078,2684.3,2683.9,0.37257]
[1727108126165,3.2078,2684.3,2683.6,3.2078]
[1727108126371,3.2078,2684.3,2683.9,0.37256]
[1727108126761,3.2078,2684.3,2683.6,3.2078]
[1727108127272,3.2078,2684.3,2683.4,0.9627]
[1727108127458,3.2078,2683.8,2683.3,3.2078]
[1727108127666,0.93138,2684.1,2683.0,0.37269]
[1727108127667,0.37263,2683.5,2683.0,0.37269]
[1727108127863,3.2078,2683.4,2682.7,40.8]
[1727108128060,4.45239,2683.8,2683.3,0.37265]
[1727108128371,3.2078,2683.9,2682.9,3.2078]
[1727108128857,3.2078,2683.9,2683.2,3.2078]
[1727108129064,3.58038,2683.9,2683.5,0.37262]
[1727108129367,3.58038,2683.9,2682.9,3.2078]
[1727108129368,3.2078,2683.9,2682.9,3.2078]
[1727108129573,0.3726,2683.7,2683.3,0.37264]
[1727108129765,0.93146,2683.8,2682.7,40.8]
[1727108129971,0.8873,2683.8,2682.7,44.0078]
[1727108130575,0.8873,2683.8,2682.7,3.2078]
[1727108130576,0.37267,2683.2,2682.7,3.2078]
[1727108130876,3.2078,2682.9,2682.8,0.37272]
[1727108131072,3.2078,2682.9,2682.5,0.9386]
[1727108131277,3.2078,2682.9,2682.8,0.37272]
[1727108131783,3.2078,2682.9,2682.5,4.1464]
[1727108132069,3.2078,2682.9,2682.7,0.37273]
[1727108132267,3.2078,2682.9,2682.5,4.1464]
[1727108132268,0.37266,2683.3,2682.9,0.3727]
[1727108132473,0.37266,2683.3,2682.5,4.1464]
[1727108132474,0.37269,2683.1,2682.7,0.37272]
[1727108132666,3.58049,2683.1,2682.7,0.37273]
[1727108132974,3.2078,2683.1,2682.7,0.37273]
[1727108133272,3.2078,2683.1,2682.6,0.37275]
[1727108133471,3.2078,2683.1,2682.5,0.9386]
[1727108133774,0.37269,2683.0,2682.6,0.37274]
[1727108133967,0.3727,2683.0,2682.7,0.37273]
[1727108134365,0.3727,2683.0,2682.5,0.9386]
[1727108134366,3.58049,2683.1,2682.8,0.37272]
[1727108134670,3.2078,2683.1,2682.5,0.9386]
[1727108134969,4.082,2683.6,2683.5,0.37262]
[1727108135172,3.58039,2683.8,2683.5,0.37262]
[1727108135370,3.7264,2683.7,2682.8,0.93181]
[1727108135569,3.7264,2683.7,2683.0,0.37269]
[1727108135570,0.37266,2683.3,2683.0,0.37269]
[1727108135769,0.37264,2683.4,2683.1,0.37268]
[1727108135964,3.2078,2683.6,2682.8,3.2078]
[1727108136171,0.93159,2683.5,2682.9,0.3727]
[1727108136368,0.37267,2683.2,2682.9,0.3727]
[1727108136677,0.37263,2683.5,2682.8,3.2078]
[1727108136873,3.2078,2683.7,2682.8,3.2078]
[1727108137170,0.37268,2683.1,2682.8,0.37271]
[1727108137375,3.2078,2683.1,2682.4,3.2078]
[1727108137565,0.37273,2682.8,2682.5,0.37276]
[1727108138274,0.37275,2682.6,2682.3,0.37279]
[1727108138478,0.37274,2682.7,2681.9,4.1293]
[1727108138775,0.37278,2682.4,2682.0,40.8]
[1727108138962,0.37274,2682.7,2682.1,0.37281]
[1727108139169,0.93188,2682.6,2681.9,0.9215]
[1727108139367,3.2078,2682.8,2681.9,0.9215]
[1727108139368,3.58057,2682.5,2682.2,0.3728]
[1727108139570,3.58057,2682.5,2681.9,0.9215]
[1727108139571,3.2078,2682.8,2682.0,3.2078]
[1727108139769,0.37281,2682.2,2681.9,0.37284]
[1727108140167,0.3728,2682.3,2681.7,3.2078]
[1727108140363,0.37279,2682.3,2682.1,0.37281]
[1727108140671,0.8833,2682.4,2681.9,0.37284]
[1727108140873,3.58062,2682.2,2681.9,0.37284]
[1727108141076,4.0911,2682.4,2681.8,0.93216]
[1727108141277,4.0911,2682.4,2681.7,3.2078]
[1727108141571,3.2078,2682.7,2682.3,0.37279]
[1727108141780,3.2078,2682.7,2681.6,0.93223]
[1727108141781,4.9888,2683.0,2682.0,6.0278]
[1727108141967,4.9888,2683.0,2682.8,0.37272]
[1727108141968,4.0989,2683.0,2682.8,0.37272]
[1727108142170,4.0989,2683.0,2682.3,0.93198]
[1727108142477,4.0989,2683.0,2682.8,0.37272]
[1727108142673,4.0989,2683.0,2682.4,4.13975]
[1727108142674,4.47159,2683.0,2682.7,0.37273]
[1727108142881,4.0989,2683.0,2682.2,0.93199]
[1727108143082,3.2078,2683.0,2682.3,4.13978]
[1727108143283,0.37271,2682.9,2682.6,0.37274]
[1727108143484,0.37272,2682.8,2682.4,0.37277]
[1727108143774,3.2078,2683.0,2682.2,3.2078]
[1727108143976,3.2078,2683.0,2681.6,3.2078]
[1727108143977,3.2078,2682.3,2681.6,3.2078]
[1727108144278,3.58063,2682.1,2681.1,4.978]
[1727108144477,3.2078,2682.1,2681.4,0.37291]
[1727108144674,4.0885,2682.1,2681.1,45.778]
[1727108144874,0.37284,2682.0,2681.1,45.778]
[1727108145072,4.0885,2682.1,2681.1,46.71037]
[1727108145281,3.2078,2681.8,2681.1,0.8873]
[1727108145478,3.58067,2681.8,2681.3,0.37292]
[1727108145680,3.2078,2681.8,2681.1,4.0951]
[1727108145883,3.2078,2682.1,2681.8,0.37286]
[1727108146085,3.2078,2682.4,2682.0,0.37283]
[1727108146276,3.2078,2682.4,2681.7,3.2078]
[1727108146576,4.1334,2682.7,2681.7,3.2078]
[1727108146775,1.29834,2682.7,2682.5,0.1068]
[1727108146969,3.2078,2682.6,2682.5,0.1068]
[1727108147174,3.2078,2682.6,2682.5,0.47956]
[1727108147373,3.2078,2683.2,2682.8,0.37271]
[1727108147575,3.2078,2683.2,2682.5,0.1068]
[1727108147779,0.9256,2683.4,2683.1,0.37268]
[1727108148079,9.795,2684.2,2682.9,3.2078]